[Event "Titled Tuesday Blitz April 4 Early 2023"]
[White "Beerdsen, Thomas"]
[Black "Bas Mas, Jose Joaquin"]
[WhiteFideId "1030108"]
[BlackFideId "22219064"]
[WhiteElo "2547"]
[BlackElo "2233"]
[Result "0-1"]
[Round "02"]
[TimeControl "180+2"]
[Date "2023.04.04"]
[WhiteClock "0:01:37"]
[BlackClock "0:00:10"]

1. e4 {[%clk 0:03:00]}  e6 {[%clk 0:02:59]} 2. c4 {[%clk 0:03:00]}  d5 {[%clk 0:02:57]} 3. cxd5 {[%clk 0:03:01]}  exd5 {[%clk 0:02:57]} 4. Qb3 {[%clk 0:03:02]}  dxe4 {[%clk 0:02:51]} 5. Bc4 {[%clk 0:03:03]}  Qe7 {[%clk 0:02:32]} 6. Nc3 {[%clk 0:03:02]}  Nf6 {[%clk 0:02:31]} 7. d3 {[%clk 0:03:03]}  exd3+ {[%clk 0:02:28]} 8. Kf1 {[%clk 0:03:03]}  Nc6 {[%clk 0:02:25]} 9. Bg5 {[%clk 0:03:03]}  h6 {[%clk 0:01:48]} 10. Re1 {[%clk 0:03:00]}  hxg5 {[%clk 0:01:46]} 11. Bxf7+ {[%clk 0:02:59]}  Kd8 {[%clk 0:01:45]} 12. Rxe7 {[%clk 0:03:00]}  Bxe7 {[%clk 0:01:46]} 13. Nf3 {[%clk 0:02:59]}  g4 {[%clk 0:01:35]} 14. Ng5 {[%clk 0:02:59]}  a5 {[%clk 0:01:33]} 15. Nb5 {[%clk 0:02:52]}  Bf5 {[%clk 0:01:29]} 16. Be6 {[%clk 0:02:50]}  a4 {[%clk 0:01:23]} 17. Qc4 {[%clk 0:02:39]}  d2 {[%clk 0:01:19]} 18. Ke2 {[%clk 0:02:29]}  Bxe6 {[%clk 0:01:07]} 19. Nxe6+ {[%clk 0:02:27]}  Kd7 {[%clk 0:01:07]} 20. Rd1 {[%clk 0:02:27]}  Bd6 {[%clk 0:01:04]} 21. Kf1 {[%clk 0:02:22]}  Rxh2 {[%clk 0:01:01]} 22. Nxd6 {[%clk 0:02:12]}  Rh1+ {[%clk 0:00:53]} 23. Ke2 {[%clk 0:02:12]}  Rxd1 {[%clk 0:00:51]} 24. Nc5+ {[%clk 0:02:06]}  Kxd6 {[%clk 0:00:51]} 25. Nxb7+ {[%clk 0:02:06]}  Kd7 {[%clk 0:00:51]} 26. Kxd1 {[%clk 0:02:03]}  Re8 {[%clk 0:00:49]} 27. Qxa4 {[%clk 0:02:00]}  Ne4 {[%clk 0:00:42]} 28. f3 {[%clk 0:01:56]}  gxf3 {[%clk 0:00:25]} 29. gxf3 {[%clk 0:01:57]}  Nf2+ {[%clk 0:00:25]} 30. Kxd2 {[%clk 0:01:51]}  Re5 {[%clk 0:00:26]} 31. b4 {[%clk 0:01:45]}  Rd5+ {[%clk 0:00:24]} 32. Ke2 {[%clk 0:01:43]}  Nd1 {[%clk 0:00:20]} 33. Nc5+ {[%clk 0:01:41]}  Kd6 {[%clk 0:00:17]} 34. Ne4+ {[%clk 0:01:41]}  Kd7 {[%clk 0:00:13]} 35. a3 {[%clk 0:01:39]}  g5 {[%clk 0:00:11]} 36. Qb3 {[%clk 0:01:39]}  Nd4+ {[%clk 0:00:09]} 37. Kxd1 {[%clk 0:01:38]}  Nxb3+ {[%clk 0:00:10]} 38. Kc2 {[%clk 0:01:39]}  Nd4+ {[%clk 0:00:10]} 39. Kc3 {[%clk 0:01:39]}  Nxf3 {[%clk 0:00:10]} 40. Nf6+ {[%clk 0:01:37]}  Ke6 {[%clk 0:00:10]} 41. Nxd5 {[%clk 0:01:36]}  Kxd5 {[%clk 0:00:11]} 42. a4 {[%clk 0:01:37]}  Nd4 {[%clk 0:00:11]} 43. a5 {[%clk 0:01:37]}  Nb5+ {[%clk 0:00:10]} 44. Kd3 {[%clk 0:01:37]}  c6 {[%clk 0:00:10]} 45. a6 {[%clk 0:01:37]}  g4 {[%clk 0:00:10]} 46. Ke3 {[%clk 0:01:37]}  Kc4 {[%clk 0:00:10]} 47. a7 {[%clk 0:01:37]}  Nxa7 {[%clk 0:00:10]} 0-1


[Site "https://www.chess.com"]

[Event "Titled Tuesday Blitz April 4 Early 2023"]
[White "Kubatko, Ivan"]
[Black "Szabo, Marcell"]
[WhiteFideId "24111473"]
[BlackFideId "2072033"]
[WhiteElo "2285"]
[BlackElo "1795"]
[Result "1-0"]
[Round "02"]
[TimeControl "180+2"]
[Date "2023.04.04"]
[WhiteClock "0:00:14"]
[BlackClock "0:01:00"]

1. e4 {[%clk 0:02:58]}  c6 {[%clk 0:02:56]} 2. d4 {[%clk 0:02:58]}  d5 {[%clk 0:02:57]} 3. exd5 {[%clk 0:02:59]}  cxd5 {[%clk 0:02:58]} 4. c4 {[%clk 0:02:59]}  Nf6 {[%clk 0:02:59]} 5. Nc3 {[%clk 0:02:59]}  g6 {[%clk 0:02:59]} 6. cxd5 {[%clk 0:02:59]}  Nxd5 {[%clk 0:02:59]} 7. Qb3 {[%clk 0:02:59]}  Nxc3 {[%clk 0:02:59]} 8. Bc4 {[%clk 0:02:59]}  e6 {[%clk 0:02:56]} 9. bxc3 {[%clk 0:02:59]}  Nc6 {[%clk 0:02:52]} 10. Nf3 {[%clk 0:02:44]}  Bd7 {[%clk 0:02:47]} 11. Bd3 {[%clk 0:02:34]}  Qb6 {[%clk 0:02:44]} 12. O-O {[%clk 0:02:28]}  Qxb3 {[%clk 0:02:43]} 13. axb3 {[%clk 0:02:29]}  a6 {[%clk 0:02:43]} 14. b4 {[%clk 0:02:21]}  Bd6 {[%clk 0:02:18]} 15. b5 {[%clk 0:02:20]}  Na7 {[%clk 0:02:18]} 16. bxa6 {[%clk 0:02:17]}  b5 {[%clk 0:02:18]} 17. Ba3 {[%clk 0:02:04]}  Ke7 {[%clk 0:02:09]} 18. Ne5 {[%clk 0:01:54]}  Rhf8 {[%clk 0:02:05]} 19. Rfb1 {[%clk 0:01:33]}  Rab8 {[%clk 0:01:34]} 20. Kf1 {[%clk 0:00:58]}  f6 {[%clk 0:01:32]} 21. Nxd7 {[%clk 0:00:55]}  Kxd7 {[%clk 0:01:32]} 22. Bxd6 {[%clk 0:00:55]}  Kxd6 {[%clk 0:01:33]} 23. Ra5 {[%clk 0:00:37]}  Rfc8 {[%clk 0:01:30]} 24. Rb3 {[%clk 0:00:34]}  e5 {[%clk 0:01:19]} 25. dxe5+ {[%clk 0:00:32]}  fxe5 {[%clk 0:01:19]} 26. Bxb5 {[%clk 0:00:28]}  Rc5 {[%clk 0:01:10]} 27. c4 {[%clk 0:00:28]}  e4 {[%clk 0:01:11]} 28. Ra1 {[%clk 0:00:20]}  Ke5 {[%clk 0:01:01]} 29. Ke2 {[%clk 0:00:19]}  Nc6 {[%clk 0:00:56]} 30. a7 {[%clk 0:00:17]}  Nd4+ {[%clk 0:00:56]} 31. Kd1 {[%clk 0:00:11]}  Ra8 {[%clk 0:00:54]} 32. Rba3 {[%clk 0:00:10]}  Nxb5 {[%clk 0:00:53]} 33. cxb5 {[%clk 0:00:11]}  Rxb5 {[%clk 0:00:49]} 34. Ra5 {[%clk 0:00:11]}  Rxa5 {[%clk 0:00:48]} 35. Rxa5+ {[%clk 0:00:12]}  Kd4 {[%clk 0:00:48]} 36. Ke2 {[%clk 0:00:13]}  h6 {[%clk 0:00:48]} 37. h4 {[%clk 0:00:12]}  g5 {[%clk 0:00:48]} 38. h5 {[%clk 0:00:13]}  g4 {[%clk 0:00:47]} 39. g3 {[%clk 0:00:12]}  Kc4 {[%clk 0:00:46]} 40. Ke3 {[%clk 0:00:13]}  Kb4 {[%clk 0:00:47]} 41. Ra1 {[%clk 0:00:13]}  Kc5 {[%clk 0:00:48]} 42. Kxe4 {[%clk 0:00:13]}  Kd6 {[%clk 0:00:48]} 43. Kf5 {[%clk 0:00:13]}  Ke7 {[%clk 0:00:49]} 44. Kg6 {[%clk 0:00:13]}  Ke6 {[%clk 0:00:49]} 45. Kxh6 {[%clk 0:00:13]}  Kf5 {[%clk 0:00:50]} 46. Ra5+ {[%clk 0:00:13]}  Kf6 {[%clk 0:00:50]} 47. Ra6+ {[%clk 0:00:10]}  Kf7 {[%clk 0:00:50]} 48. Kg5 {[%clk 0:00:11]}  Rg8+ {[%clk 0:00:50]} 49. Kh4 {[%clk 0:00:11]}  Ra8 {[%clk 0:00:51]} 50. Kxg4 {[%clk 0:00:11]}  Kg7 {[%clk 0:00:52]} 51. Kg5 {[%clk 0:00:11]}  Kh7 {[%clk 0:00:52]} 52. g4 {[%clk 0:00:11]}  Rg8+ {[%clk 0:00:52]} 53. Kh4 {[%clk 0:00:12]}  Ra8 {[%clk 0:00:53]} 54. g5 {[%clk 0:00:12]}  Kg7 {[%clk 0:00:54]} 55. f4 {[%clk 0:00:13]}  Kh7 {[%clk 0:00:54]} 56. f5 {[%clk 0:00:13]}  Kg7 {[%clk 0:00:55]} 57. Kg4 {[%clk 0:00:14]}  Kh7 {[%clk 0:00:56]} 58. h6 {[%clk 0:00:15]}  Kg8 {[%clk 0:00:56]} 59. Kh5 {[%clk 0:00:15]}  Kf7 {[%clk 0:00:57]} 60. g6+ {[%clk 0:00:15]}  Kg8 {[%clk 0:00:57]} 61. f6 {[%clk 0:00:15]}  Kf8 {[%clk 0:00:57]} 62. h7 {[%clk 0:00:15]}  Ke8 {[%clk 0:00:58]} 63. h8=Q+ {[%clk 0:00:15]}  Kd7 {[%clk 0:00:59]} 64. Qxa8 {[%clk 0:00:15]}  Kc7 {[%clk 0:01:00]} 65. Qb8+ {[%clk 0:00:15]}  Kd7 {[%clk 0:01:00]} 66. Rd6# {[%clk 0:00:14]} 1-0


[Site "https://www.chess.com"]

[Event "Titled Tuesday Blitz April 4 Early 2023"]
[White "Perez Rodriguez, Jennifer"]
[Black "Srinath, Rao S.V."]
[WhiteFideId "3507831"]
[BlackFideId "5028876"]
[WhiteElo "2116"]
[BlackElo "2196"]
[Result "0-1"]
[Round "02"]
[TimeControl "180+2"]
[Date "2023.04.04"]
[WhiteClock "0:01:48"]
[BlackClock "0:00:55"]

1. e4 {[%clk 0:03:00]}  c6 {[%clk 0:02:59]} 2. Nc3 {[%clk 0:02:59]}  d5 {[%clk 0:02:58]} 3. Nf3 {[%clk 0:03:00]}  dxe4 {[%clk 0:02:50]} 4. Nxe4 {[%clk 0:03:00]}  Nf6 {[%clk 0:02:50]} 5. Qe2 {[%clk 0:02:58]}  Nxe4 {[%clk 0:02:48]} 6. Qxe4 {[%clk 0:02:57]}  Nd7 {[%clk 0:02:46]} 7. Bc4 {[%clk 0:02:56]}  Nf6 {[%clk 0:02:47]} 8. Ne5 {[%clk 0:02:56]}  e6 {[%clk 0:02:47]} 9. Qe2 {[%clk 0:02:54]}  Qc7 {[%clk 0:02:36]} 10. d4 {[%clk 0:02:52]}  Bd6 {[%clk 0:02:34]} 11. Bf4 {[%clk 0:02:50]}  b5 {[%clk 0:02:29]} 12. Bb3 {[%clk 0:02:48]}  O-O {[%clk 0:02:11]} 13. O-O {[%clk 0:02:47]}  a6 {[%clk 0:02:06]} 14. Rad1 {[%clk 0:02:43]}  Nd5 {[%clk 0:01:49]} 15. Bg3 {[%clk 0:02:34]}  Bb7 {[%clk 0:01:30]} 16. c3 {[%clk 0:02:25]}  Rae8 {[%clk 0:01:26]} 17. Bc2 {[%clk 0:02:25]}  f5 {[%clk 0:01:22]} 18. f4 {[%clk 0:02:24]}  c5 {[%clk 0:01:21]} 19. Bf2 {[%clk 0:02:22]}  Nxf4 {[%clk 0:01:19]} 20. Qe3 {[%clk 0:02:14]}  Bxe5 {[%clk 0:01:08]} 21. Qxe5 {[%clk 0:02:09]}  Qc6 {[%clk 0:01:05]} 22. d5 {[%clk 0:01:59]}  Nxd5 {[%clk 0:01:05]} 23. Qg3 {[%clk 0:01:53]}  Nf6 {[%clk 0:01:00]} 24. Rfe1 {[%clk 0:01:48]}  Nh5 {[%clk 0:00:55]} 0-1


[Site "https://www.chess.com"]

[Event "Titled Tuesday Blitz April 4 Early 2023"]
[White "Demin, Vladimir"]
[Black "Topalov, Aleksandar"]
[WhiteFideId "4167457"]
[BlackFideId "925659"]
[WhiteElo "2553"]
[BlackElo "2151"]
[Result "0-1"]
[Round "02"]
[TimeControl "180+2"]
[Date "2023.04.04"]
[WhiteClock "0:00:02"]
[BlackClock "0:00:05"]

1. e4 {[%clk 0:03:00]}  e6 {[%clk 0:02:05]} 2. d4 {[%clk 0:03:00]}  d5 {[%clk 0:02:04]} 3. Bd3 {[%clk 0:02:59]}  dxe4 {[%clk 0:02:04]} 4. Bxe4 {[%clk 0:02:59]}  Nf6 {[%clk 0:02:05]} 5. Bf3 {[%clk 0:02:59]}  c5 {[%clk 0:02:05]} 6. Ne2 {[%clk 0:02:59]}  Nc6 {[%clk 0:02:04]} 7. Be3 {[%clk 0:02:58]}  e5 {[%clk 0:02:04]} 8. Bxc6+ {[%clk 0:02:57]}  bxc6 {[%clk 0:02:03]} 9. dxe5 {[%clk 0:02:58]}  Qxd1+ {[%clk 0:02:02]} 10. Kxd1 {[%clk 0:02:59]}  Ng4 {[%clk 0:02:03]} 11. Nd2 {[%clk 0:02:59]}  Bf5 {[%clk 0:01:42]} 12. Ng3 {[%clk 0:02:23]}  Nxe3+ {[%clk 0:01:35]} 13. fxe3 {[%clk 0:02:23]}  Bg6 {[%clk 0:01:29]} 14. h4 {[%clk 0:02:10]}  h6 {[%clk 0:01:21]} 15. h5 {[%clk 0:02:09]}  Bh7 {[%clk 0:01:21]} 16. c4 {[%clk 0:01:53]}  O-O-O {[%clk 0:01:18]} 17. Ke2 {[%clk 0:01:51]}  Be7 {[%clk 0:01:11]} 18. Nde4 {[%clk 0:01:40]}  Rhe8 {[%clk 0:01:08]} 19. Rad1 {[%clk 0:01:36]}  Kc7 {[%clk 0:01:00]} 20. Rhf1 {[%clk 0:01:27]}  Rxd1 {[%clk 0:00:53]} 21. Kxd1 {[%clk 0:01:20]}  Rf8 {[%clk 0:00:53]} 22. Ke2 {[%clk 0:01:10]}  Kd7 {[%clk 0:00:53]} 23. Rd1+ {[%clk 0:00:39]}  Ke6 {[%clk 0:00:53]} 24. Rd3 {[%clk 0:00:34]}  Rb8 {[%clk 0:00:49]} 25. b3 {[%clk 0:00:32]}  a5 {[%clk 0:00:48]} 26. Rd2 {[%clk 0:00:26]}  a4 {[%clk 0:00:38]} 27. bxa4 {[%clk 0:00:24]}  Rb4 {[%clk 0:00:38]} 28. Nd6 {[%clk 0:00:18]}  Rxa4 {[%clk 0:00:33]} 29. Nge4 {[%clk 0:00:18]}  Kxe5 {[%clk 0:00:29]} 30. Nxc5 {[%clk 0:00:17]}  Ra3 {[%clk 0:00:17]} 31. Ncb7 {[%clk 0:00:12]}  Bg5 {[%clk 0:00:12]} 32. Nxf7+ {[%clk 0:00:12]}  Kf6 {[%clk 0:00:12]} 33. Nxg5 {[%clk 0:00:13]}  Kxg5 {[%clk 0:00:12]} 34. Nd6 {[%clk 0:00:11]}  Kxh5 {[%clk 0:00:12]} 35. c5 {[%clk 0:00:10]}  Kg5 {[%clk 0:00:12]} 36. Kf3 {[%clk 0:00:09]}  Bg6 {[%clk 0:00:11]} 37. Ne4+ {[%clk 0:00:08]}  Kf5 {[%clk 0:00:10]} 38. Nf2 {[%clk 0:00:06]}  Ke5 {[%clk 0:00:08]} 39. g4 {[%clk 0:00:06]}  Ra5 {[%clk 0:00:07]} 40. Rd6 {[%clk 0:00:01]}  Bf7 {[%clk 0:00:05]} 41. Rd7 {[%clk 0:00:01]}  Bd5+ {[%clk 0:00:06]} 42. e4 {[%clk 0:00:01]}  Ra3+ {[%clk 0:00:06]} 43. Ke2 {[%clk 0:00:02]}  Rxa2+ {[%clk 0:00:06]} 44. Kf1 {[%clk 0:00:02]}  Ra1+ {[%clk 0:00:06]} 45. Kg2 {[%clk 0:00:02]}  Be6 {[%clk 0:00:07]} 46. Re7 {[%clk 0:00:01]}  Ra2 {[%clk 0:00:07]} 47. Rxg7 {[%clk 0:00:02]}  Bc4 {[%clk 0:00:05]} 48. Rg6 {[%clk 0:00:02]}  Kf4 {[%clk 0:00:05]} 49. Rf6+ {[%clk 0:00:02]}  Ke5 {[%clk 0:00:05]} 50. Rxc6 {[%clk 0:00:03]}  Bd3 {[%clk 0:00:04]} 51. Rxh6 {[%clk 0:00:02]}  Bxe4+ {[%clk 0:00:04]} 52. Kf1 {[%clk 0:00:02]}  Ra1+ {[%clk 0:00:05]} 53. Ke2 {[%clk 0:00:03]}  Ra2+ {[%clk 0:00:05]} 54. Ke3 {[%clk 0:00:03]}  Ra3+ {[%clk 0:00:06]} 55. Ke2 {[%clk 0:00:03]}  Ra2+ {[%clk 0:00:06]} 56. Ke1 {[%clk 0:00:04]}  Ra1+ {[%clk 0:00:07]} 57. Nd1 {[%clk 0:00:04]}  Bc2 {[%clk 0:00:06]} 58. Rd6 {[%clk 0:00:05]}  Rc1 {[%clk 0:00:04]} 59. Rd2 {[%clk 0:00:05]}  Bxd1 {[%clk 0:00:04]} 60. Rxd1 {[%clk 0:00:05]}  Rxc5 {[%clk 0:00:05]} 61. Kf2 {[%clk 0:00:02]}  Rc3 {[%clk 0:00:05]} 0-1


[Site "https://www.chess.com"]

[Event "Titled Tuesday Blitz April 4 Early 2023"]
[White "Ibadov, Dashgyn"]
[Black "Levine, David"]
[WhiteFideId "24107514"]
[BlackFideId "2011611"]
[WhiteElo "2208"]
[BlackElo "2094"]
[Result "1-0"]
[Round "02"]
[TimeControl "180+2"]
[Date "2023.04.04"]
[WhiteClock "0:00:09"]
[BlackClock "0:00:03"]

1. e4 {[%clk 0:03:00]}  e5 {[%clk 0:02:59]} 2. Nf3 {[%clk 0:03:00]}  Nc6 {[%clk 0:02:59]} 3. d4 {[%clk 0:03:00]}  exd4 {[%clk 0:02:58]} 4. Nxd4 {[%clk 0:03:01]}  Nf6 {[%clk 0:02:58]} 5. Nc3 {[%clk 0:03:00]}  Bb4 {[%clk 0:02:57]} 6. Nxc6 {[%clk 0:03:00]}  bxc6 {[%clk 0:02:58]} 7. Bd3 {[%clk 0:03:01]}  d5 {[%clk 0:02:58]} 8. exd5 {[%clk 0:03:02]}  cxd5 {[%clk 0:02:58]} 9. O-O {[%clk 0:03:02]}  O-O {[%clk 0:02:58]} 10. Qf3 {[%clk 0:02:58]}  c6 {[%clk 0:02:56]} 11. Bg5 {[%clk 0:02:57]}  Bd6 {[%clk 0:02:54]} 12. Rad1 {[%clk 0:02:42]}  Rb8 {[%clk 0:02:53]} 13. b3 {[%clk 0:02:41]}  Be5 {[%clk 0:02:52]} 14. Ne2 {[%clk 0:02:36]}  Qd6 {[%clk 0:02:51]} 15. h3 {[%clk 0:02:32]}  a5 {[%clk 0:02:39]} 16. Ng3 {[%clk 0:02:28]}  a4 {[%clk 0:02:29]} 17. Nf5 {[%clk 0:02:18]}  Bxf5 {[%clk 0:02:16]} 18. Qxf5 {[%clk 0:02:19]}  g6 {[%clk 0:02:16]} 19. Qf3 {[%clk 0:02:17]}  Nd7 {[%clk 0:02:09]} 20. Rfe1 {[%clk 0:02:08]}  Rfe8 {[%clk 0:02:04]} 21. h4 {[%clk 0:01:59]}  axb3 {[%clk 0:02:00]} 22. axb3 {[%clk 0:01:58]}  Nc5 {[%clk 0:01:51]} 23. h5 {[%clk 0:01:39]}  Nxd3 {[%clk 0:01:31]} 24. Qxd3 {[%clk 0:01:40]}  Bf4 {[%clk 0:01:15]} 25. Bxf4 {[%clk 0:01:16]}  Qxf4 {[%clk 0:01:15]} 26. g3 {[%clk 0:01:08]}  Qg5 {[%clk 0:01:13]} 27. hxg6 {[%clk 0:01:02]}  hxg6 {[%clk 0:01:13]} 28. Kg2 {[%clk 0:01:01]}  Kg7 {[%clk 0:01:10]} 29. Ra1 {[%clk 0:00:48]}  Qf6 {[%clk 0:01:06]} 30. Rxe8 {[%clk 0:00:22]}  Rxe8 {[%clk 0:01:05]} 31. Ra6 {[%clk 0:00:21]}  Re6 {[%clk 0:01:03]} 32. Ra4 {[%clk 0:00:20]}  Qe5 {[%clk 0:00:59]} 33. Rf4 {[%clk 0:00:19]}  c5 {[%clk 0:00:50]} 34. c3 {[%clk 0:00:18]}  f5 {[%clk 0:00:39]} 35. b4 {[%clk 0:00:18]}  Kf6 {[%clk 0:00:29]} 36. bxc5 {[%clk 0:00:16]}  g5 {[%clk 0:00:27]} 37. Rb4 {[%clk 0:00:14]}  Rc6 {[%clk 0:00:13]} 38. Qd4 {[%clk 0:00:11]}  Ke6 {[%clk 0:00:08]} 39. Rb6 {[%clk 0:00:11]}  Rxb6 {[%clk 0:00:06]} 40. Qxe5+ {[%clk 0:00:09]}  Kxe5 {[%clk 0:00:06]} 41. cxb6 {[%clk 0:00:10]}  Kd6 {[%clk 0:00:06]} 42. Kf3 {[%clk 0:00:10]}  Kc6 {[%clk 0:00:05]} 43. Ke3 {[%clk 0:00:10]}  Kxb6 {[%clk 0:00:05]} 44. Kd4 {[%clk 0:00:11]}  Kc6 {[%clk 0:00:05]} 45. Ke5 {[%clk 0:00:08]}  Kc5 {[%clk 0:00:04]} 46. Kxf5 {[%clk 0:00:09]}  Kc4 {[%clk 0:00:04]} 47. Ke5 {[%clk 0:00:06]}  Kxc3 {[%clk 0:00:03]} 48. Kxd5 {[%clk 0:00:06]}  g4 {[%clk 0:00:03]} 49. Ke4 {[%clk 0:00:06]}  Kd2 {[%clk 0:00:03]} 50. Kf4 {[%clk 0:00:06]}  Ke2 {[%clk 0:00:03]} 51. Kxg4 {[%clk 0:00:07]}  Kxf2 {[%clk 0:00:03]} 52. Kf4 {[%clk 0:00:08]}  Kg2 {[%clk 0:00:03]} 53. g4 {[%clk 0:00:09]} 1-0


[Site "https://www.chess.com"]

[Event "Titled Tuesday Blitz April 4 Early 2023"]
[White "Vakhlamov, Igor L."]
[Black "Mikhaylova, Irina"]
[WhiteFideId "24126748"]
[BlackFideId "4109040"]
[WhiteElo "2400"]
[BlackElo "1975"]
[Result "1-0"]
[Round "02"]
[TimeControl "180+2"]
[Date "2023.04.04"]
[WhiteClock "0:00:10"]
[BlackClock "0:00:18"]

1. e4 {[%clk 0:03:00]}  c5 {[%clk 0:02:59]} 2. Nf3 {[%clk 0:03:00]}  Nc6 {[%clk 0:03:00]} 3. Nc3 {[%clk 0:03:00]}  d6 {[%clk 0:03:00]} 4. Bb5 {[%clk 0:03:00]}  Bd7 {[%clk 0:02:58]} 5. Bxc6 {[%clk 0:02:59]}  Bxc6 {[%clk 0:02:59]} 6. d4 {[%clk 0:03:00]}  cxd4 {[%clk 0:02:59]} 7. Qxd4 {[%clk 0:03:01]}  e5 {[%clk 0:02:55]} 8. Qd3 {[%clk 0:03:00]}  h6 {[%clk 0:02:54]} 9. O-O {[%clk 0:02:58]}  Nf6 {[%clk 0:02:55]} 10. Rd1 {[%clk 0:02:57]}  Be7 {[%clk 0:02:55]} 11. Nh4 {[%clk 0:02:58]}  Bd7 {[%clk 0:02:42]} 12. a4 {[%clk 0:02:25]}  a6 {[%clk 0:02:05]} 13. b3 {[%clk 0:02:14]}  O-O {[%clk 0:01:57]} 14. Ba3 {[%clk 0:02:04]}  Rc8 {[%clk 0:01:21]} 15. Rac1 {[%clk 0:01:55]}  Rc6 {[%clk 0:01:07]} 16. Nf3 {[%clk 0:01:29]}  Qc7 {[%clk 0:00:46]} 17. Nd5 {[%clk 0:01:28]}  Nxd5 {[%clk 0:00:46]} 18. exd5 {[%clk 0:01:23]}  Rc3 {[%clk 0:00:46]} 19. Qe2 {[%clk 0:01:20]}  Bg4 {[%clk 0:00:42]} 20. Bb4 {[%clk 0:01:15]}  Bxf3 {[%clk 0:00:42]} 21. gxf3 {[%clk 0:01:16]}  Bg5 {[%clk 0:00:40]} 22. Bxc3 {[%clk 0:01:09]}  Qxc3 {[%clk 0:00:41]} 23. Rd3 {[%clk 0:01:02]}  Qb2 {[%clk 0:00:36]} 24. Re1 {[%clk 0:01:00]}  Rc8 {[%clk 0:00:35]} 25. c4 {[%clk 0:01:00]}  Qa3 {[%clk 0:00:33]} 26. Qe4 {[%clk 0:00:57]}  Qc5 {[%clk 0:00:31]} 27. Kg2 {[%clk 0:00:54]}  g6 {[%clk 0:00:30]} 28. h4 {[%clk 0:00:54]}  f5 {[%clk 0:00:29]} 29. Qe2 {[%clk 0:00:51]}  Bf4 {[%clk 0:00:30]} 30. Rg1 {[%clk 0:00:49]}  Kf7 {[%clk 0:00:30]} 31. Kf1 {[%clk 0:00:49]}  Qc7 {[%clk 0:00:30]} 32. Rd1 {[%clk 0:00:48]}  Rg8 {[%clk 0:00:29]} 33. Qd3 {[%clk 0:00:45]}  Qe7 {[%clk 0:00:28]} 34. Rh1 {[%clk 0:00:46]}  a5 {[%clk 0:00:25]} 35. Ke2 {[%clk 0:00:43]}  b6 {[%clk 0:00:25]} 36. Rdg1 {[%clk 0:00:43]}  Qc7 {[%clk 0:00:24]} 37. Rg2 {[%clk 0:00:37]}  Qe7 {[%clk 0:00:24]} 38. Kd1 {[%clk 0:00:33]}  Qf6 {[%clk 0:00:24]} 39. Kc2 {[%clk 0:00:32]}  Re8 {[%clk 0:00:23]} 40. Kb1 {[%clk 0:00:32]}  e4 {[%clk 0:00:22]} 41. fxe4 {[%clk 0:00:31]}  Rxe4 {[%clk 0:00:22]} 42. Rhg1 {[%clk 0:00:28]}  Qe5 {[%clk 0:00:20]} 43. f3 {[%clk 0:00:09]}  Re1+ {[%clk 0:00:19]} 44. Rxe1 {[%clk 0:00:07]}  Qxe1+ {[%clk 0:00:19]} 45. Ka2 {[%clk 0:00:08]}  Qa1+ {[%clk 0:00:19]} 46. Kxa1 {[%clk 0:00:07]}  Be5+ {[%clk 0:00:20]} 47. Kb1 {[%clk 0:00:07]}  Kf6 {[%clk 0:00:19]} 48. h5 {[%clk 0:00:07]}  g5 {[%clk 0:00:20]} 49. Qe3 {[%clk 0:00:07]}  Kf7 {[%clk 0:00:18]} 50. Qxb6 {[%clk 0:00:07]}  Kf6 {[%clk 0:00:18]} 51. Re2 {[%clk 0:00:07]}  g4 {[%clk 0:00:17]} 52. c5 {[%clk 0:00:08]}  gxf3 {[%clk 0:00:17]} 53. Rxe5 {[%clk 0:00:08]}  Kxe5 {[%clk 0:00:17]} 54. Qxd6+ {[%clk 0:00:08]}  Ke4 {[%clk 0:00:17]} 55. Qe6+ {[%clk 0:00:09]}  Kd3 {[%clk 0:00:18]} 56. Qxf5+ {[%clk 0:00:10]} 1-0


[Site "https://www.chess.com"]

[Event "Titled Tuesday Blitz April 4 Early 2023"]
[White "Rohith Krishna S"]
[Black "ArtemDyachuk"]
[WhiteFideId "46617051"]
[WhiteElo "2270"]
[BlackElo "2405"]
[Result "1-0"]
[Round "02"]
[TimeControl "180+2"]
[Date "2023.04.04"]
[WhiteClock "0:01:51"]
[BlackClock "0:00:11"]

1. e4 {[%clk 0:02:56]}  c6 {[%clk 0:02:59]} 2. d4 {[%clk 0:02:56]}  d5 {[%clk 0:02:56]} 3. e5 {[%clk 0:02:56]}  c5 {[%clk 0:02:54]} 4. c3 {[%clk 0:02:56]}  Nc6 {[%clk 0:02:54]} 5. Nf3 {[%clk 0:02:57]}  Bf5 {[%clk 0:02:47]} 6. Bd3 {[%clk 0:02:56]}  Bxd3 {[%clk 0:02:46]} 7. Qxd3 {[%clk 0:02:57]}  e6 {[%clk 0:02:46]} 8. O-O {[%clk 0:02:58]}  Qb6 {[%clk 0:02:46]} 9. a3 {[%clk 0:02:56]}  a5 {[%clk 0:02:41]} 10. Nbd2 {[%clk 0:02:51]}  Nh6 {[%clk 0:02:38]} 11. c4 {[%clk 0:02:48]}  Rd8 {[%clk 0:02:29]} 12. cxd5 {[%clk 0:02:45]}  Rxd5 {[%clk 0:02:28]} 13. Nc4 {[%clk 0:02:46]}  Qd8 {[%clk 0:02:25]} 14. Bxh6 {[%clk 0:02:44]}  gxh6 {[%clk 0:02:16]} 15. Ne3 {[%clk 0:02:41]}  Rd7 {[%clk 0:02:12]} 16. d5 {[%clk 0:02:31]}  exd5 {[%clk 0:02:08]} 17. Rad1 {[%clk 0:02:31]}  Rg8 {[%clk 0:01:42]} 18. Rfe1 {[%clk 0:02:28]}  Rg6 {[%clk 0:01:35]} 19. Nxd5 {[%clk 0:02:24]}  Nd4 {[%clk 0:01:18]} 20. Nf6+ {[%clk 0:02:23]}  Rxf6 {[%clk 0:01:11]} 21. exf6+ {[%clk 0:02:18]}  Ne6 {[%clk 0:01:11]} 22. Qb5 {[%clk 0:02:17]}  Qc7 {[%clk 0:00:18]} 23. Ne5 {[%clk 0:01:55]}  Bd6 {[%clk 0:00:17]} 24. Nxd7 {[%clk 0:01:52]}  Qxd7 {[%clk 0:00:18]} 25. Rxe6+ {[%clk 0:01:51]}  fxe6 {[%clk 0:00:11]} 26. f7+ {[%clk 0:01:51]} 1-0


[Site "https://www.chess.com"]